Workbook

Sheet PRESUPUESTO
D1: ANCHO | F1: 10.3
D2: LARGO | F2: 1025 | G2: =F1*F2 -> 10557.5
D3: AREA TOTAL | F3: =+F4+F5+F6 -> 12858.98
D4: CARPETA ASFALTICA 6CM | F4: =G2-(10.3*80.5)-(10.3*91.8) -> 8782.81
D5: CONCRETO HIDRAULICO 20 CM | F5: =(21.1*80.5) -> 1698.55 | G5: (VADO 2)
D6: CONCRETO HIDRAULICO 20 CM | F6: =(25.9*91.8) -> 2377.62 | G6: (VADO 3)
D8: ANCHO | F8: 14 | G8: ALTAMIRA
D9: LARGO | F9: 50 | G9: =F8*F9 -> 700
D10: AREA TOTAL | F10: =F8*F9 -> 700
D11: CARPETA ASFALTICA 6CM | F11: =F10 -> 700
A15: H. XVIII AYUNTAMIENTO DE LA PAZ
A16: DIRECCIÓN GENERAL DE GESTIÓN INTEGRAL DE LA CIUDAD
A17: DIRECCION DE OBRAS PUBLICAS
A19: CATALOGO DE CONCEPTOS
A21: LICITANTE: | G21: FECHA DEL CONCURSO:
A22: No. DE OBRA: FIEU202422
A23: OBRA: OBRAS PARA LA MOVILIDAD SEGURA EN CALLES PRINCIPALES DE LA CIUDAD DE LA PAZ
A25: CLAVE | B25: CONCEPTO | C25: UNIDAD | D25: CANTIDAD | E25: PRECIO UNITARIO | F25: PRECIO UNITARIO CON LETRA | G25: IMPORTE
A26: I | B26: PRELIMINARES
A27: l.1 | B27: FABRICACION E INSTALACION DE LETRERO DE OBRA DE 1.22 X 2.44 MTS., DE LONA IMPRESA EN VINIL CON LETRERO INFORMATIVO DE OBRA Y LOGO DE LA INSTITUCION, CON OJILLOS A CADA 30CM, HILO NYLON PARA SUJETAR LA LONA EN EL BASTIDOR; BASTIDOR FABRICADO CON PERFIL C-200, CAL. 14 CON PINTURA ANTICORROSIVA Y PINTURA ESMALTE, POSTES ANCLADOS EN DADOS DE 30X30X80 CM DE CONCRETO F'C=200KG/CM2 CONTRA EXCAVACION; INCLUYE: SUMINISTRO DE TODOS LOS MATERIALES, HERRAMIENTA, EQUIPO Y MANO DE OBRA (VER DETALLE EN PLANO). | C27: PZA | D27: 1 | G27: =D27*F27 -> 0
A28: 1 | B28: CARRETERA ESCÉNICA Y PALMIRA (MALECÓN)
A29: A | B29: REDUCTOR DE VELOCIDAD TIPO MODULAR
A30: A.1 | B30: SUMINISTRO Y COLOCACIÓN DE MÓDULOS DE REDUCTOR DE VELOCIDAD CON MEDIDAS DE 40x40x5cm DE MATERIAL DE PLASTICO,INCLUYE: MANO DE OBRA, MATERIAL, EQUIPO Y HERRAMIENTA PARA SU CORRECTA INSTALACION. P.U.O.T. | C30: PZA | D30: 49 | G30: =ROUND(F30*D30,2) -> 0
A31: A.1 | B31: SUMINISTRO Y COLOCACIÓN DE MÓDULOS DE REDUCTOR DE VELOCIDAD (REMATES) CON MEDIDAS DE 40x20x5cm DE MATERIAL DE PLASTICO,INCLUYE: MANO DE OBRA, MATERIAL, EQUIPO Y HERRAMIENTA PARA SU CORRECTA INSTALACION. P.U.O.T. | C31: PZA | D31: 4 | G31: =ROUND(F31*D31,2) -> 0
A32: B | B32: SEÑALAMIENTO VERTICAL
A33: B.1 | B33: SUMINISTRO E INSTALACION DE SEÑALAMIENTO TIPO SP-41 CON DIMENSIONES DE 71x71cm CON LAMINA GALVANIZADA CALIBRE 16, INCLUYE: MANO DE OBRA, MATERIALES, EQUIPO Y HERRAMIENTA NECESARIA PARA LA CORRECTA INSTALACIÓN. P.U.O.T. | C33: PZA | D33: 8 | G33: =ROUND(F33*D33,2) -> 0
A34: B.2 | B34: SUMINISTRO E INSTALACION DE SEÑALAMIENTO TIPO SP-41B CON DIMENSIONES DE 71x71cm CON LAMINA GALVANIZADA CALIBRE 16, INCLUYE: MANO DE OBRA, MATERIALES, EQUIPO Y HERRAMIENTA NECESARIA PARA LA CORRECTA INSTALACIÓN P.U.O.T. | C34: PZA | D34: 4 | G34: =ROUND(F34*D34,2) -> 0
A35: B.3 | B35: SUMINISTRO E INSTALACION DE SEÑALAMIENTO TIPO SR-9 (50 KM/HR) CON DIMENSIONES DE 71x71cm CON LAMINA GALVANIZADA CALIBRE 16, INCLUYE: MANO DE OBRA, MATERIALES, EQUIPO Y HERRAMIENTA NECESARIA PARA LA CORRECTA INSTALACIÓN P.U.O.T. | C35: PZA | D35: 4 | G35: 0
A36: B.4 | B36: SUMINISTRO E INSTALACION DE SEÑALAMIENTO TIPO SR-9 (30 KM/HR) CON DIMENSIONES DE 71x71cm CON LAMINA GALVANIZADA CALIBRE 16, INCLUYE: MANO DE OBRA, MATERIALES, EQUIPO Y HERRAMIENTA NECESARIA PARA LA CORRECTA INSTALACIÓN P.U.O.T. | C36: PZA | D36: 4 | G36: 0
A37: B.5 | B37: SUMINISTRO E INSTALACION DE SEÑALAMIENTO TIPO SP-12 CON DIMENSIONES DE 71x71cm CON LAMINA GALVANIZADA CALIBRE 16, INCLUYE: MANO DE OBRA, MATERIALES, EQUIPO Y HERRAMIENTA NECESARIA PARA LA CORRECTA INSTALACIÓN P.U.O.T. | C37: PZA | D37: 4 | G37: 0
A38: B.6 | B38: SUMINISTRO E INSTALACION DE SEÑALAMIENTO TIPO SP-12A CON DIMENSIONES DE 71x71cm CON LAMINA GALVANIZADA CALIBRE 16, INCLUYE: MANO DE OBRA, MATERIALES, EQUIPO Y HERRAMIENTA NECESARIA PARA LA CORRECTA INSTALACIÓN P.U.O.T. | C38: PZA | D38: 4 | G38: 0
A39: B.7 | B39: SUMINISTRO E INSTALACION DE SEÑALAMIENTO TIPO SP-A CON DIMENSIONES DE 100x25cm CON LAMINA GALVANIZADA CALIBRE 16, INCLUYE: MANO DE OBRA, MATERIALES, EQUIPO Y HERRAMIENTA NECESARIA PARA LA CORRECTA INSTALACIÓN P.U.O.T. | C39: PZA | D39: 16 | G39: =ROUND(F39*D39,2) -> 0
A40: C | B40: SEÑALAMIENTO HORIZONTAL
A41: C.1 | B41: RAYAS CON ESPACIAMIENTO LOGARITMICO REALZADAS CON MEZCLA ASFÁLTICA Y PINTADAS M-9 TIPO 20/13 COLOR BLANCO CON ANCHO DE 60 CM Y 1 CM DE ESPESOR EN AMBOS SENTIDOS DE CIRCULACION PREVIO AL REDUCTOR DE VELOCIDAD, INCLUYE: MANO DE OBRA, HERRAMIENTA, EQUIPO MENOR ASI COMO EL EQUIPO NECESARIO PARA SU CORRECTA INSTALACIÓN. P.U.O.T. | C41: ML | D41: =11.7*13+10.6*13 -> 289.9 | G41: 0
A42: C.2 | B42: RAYA SEPARADORA DE SENTIDOS DE CIRCULACIÓN M-1.1 COLOR AMARILLO CON ANCHO DE 10 cm EN AMBOS SENTIDOS DE CIRCULACION, INCLUYE: MANO DE OBRA, EQUIPO, HERRAMIENTA, ASI COMO EL EQUIPO NECESARIO PARA SU CORRECTA INSTALACIÓN, P.U.O.T. | C42: ML | D42: 600 | G42: 0
A43: C.3 | B43: RAYA SEPARADORA DE CARRIL M-2.3 COLOR BLANCO CON ANCHO DE 10 cm EN AMBOS SENTIDOS DE CIRCULACION, INCLUYE: MANO DE OBRA, EQUIPO, HERRAMIENTA, ASI COMO EL EQUIPO NECESARIO PARA SU CORRECTA INSTALACIÓN, P.U.O.T. | C43: ML | D43: 600 | G43: 0
A44: C.4 | B44: RAYA A LA ORILLA DERECHA M-3.1 COLOR BLANCO CON ANCHO DE 10 cm EN AMBOS SENTIDOS DE CIRCULACION, INCLUYE: MANO DE OBRA, EQUIPO, HERRAMIENTA, ASI COMO EL EQUIPO NECESARIO PARA SU CORRECTA INSTALACIÓN, P.U.O.T. | C44: ML | D44: 600 | G44: 0
A45: C.5 | B45: BOTÓN REFLEJANTE SOBRE EL PAVIMENTO (VIALETA) DE 10X10CM COLOR AMARILLO EN DOS CARAS BRM-A2 SOBRE RAYA M-1.1, FIJADO CON PEGAMENTO EPÓXICO PARA VIALETAS. INCLUYE: MANO DE OBRA, EQUIPO, HERRAMIENTA, ASI COMO EL EQUIPO NECESARIO PARA SU CORRECTA INSTALACIÓN, P.U.O.T. | C45: PZA | D45: =D42/15+2 -> 42 | G45: 0
A46: C.6 | B46: BOTÓN REFLEJANTE SOBRE EL PAVIMENTO (VIALETA) DE 10X10CM COLOR BLANCO EN UNA CARA BRM-B1 SOBRE RAYA M-2.3, FIJADO CON PEGAMENTO EPÓXICO PARA VIALETAS. INCLUYE: MANO DE OBRA, EQUIPO, HERRAMIENTA, ASI COMO EL EQUIPO NECESARIO PARA SU CORRECTA INSTALACIÓN, P.U.O.T. | C46: PZA | D46: =D43/30+2 -> 22 | G46: =ROUND(F46*D46,2) -> 0
A47: C.7 | B47: BOTÓN REFLEJANTE SOBRE EL PAVIMENTO (VIALETA) DE 10X10CM COLOR BLANCO EN UNA CARA BRM-B1 SOBRE RAYA M-3.1,FIJADO CON PEGAMENTO EPÓXICO PARA VIALETAS. INCLUYE: MANO DE OBRA, EQUIPO, HERRAMIENTA, ASI COMO EL EQUIPO NECESARIO PARA SU CORRECTA INSTALACIÓN, P.U.O.T. | C47: PZA | D47: =D44/30+2 -> 22 | G47: =ROUND(F47*D47,2) -> 0
A48: C.8 | B48: SUMINISTRO Y APLICACIÓN DE PINTURA VINILICA AHULADA, EN COLOR ROJO A DOS MANOS EN GUANICIÓN DE CONCRETO EXISTENTE, LADO DERECHO, INCLUYE: PREPARACION DE LA SUPERFICIE, LIMPIEZA, MATERIALES, MANO DE OBRA Y HERRAMIENTA, ASÍ COMO LO NECESARIO PARA SU CORRECTA APLICACIÓN, P.U.O.T. | C48: ML | D48: 600 | G48: =ROUND(F48*D48,2) -> 0
A49: C.9 | B49: SUMINISTRO Y APLICACIÓN DE PINTURA VINILICA AHULADA, EN COLOR AMARILLO A DOS MANOS EN GUANICIÓN CENTRAL DE CONCRETO EXISTENTE, INCLUYE: PREPARACION DE LA SUPERFICIE, LIMPIEZA, MATERIALES, MANO DE OBRA Y HERRAMIENTA, ASÍ COMO LO NECESARIO PARA SU CORRECTA APLICACIÓN, P.U.O.T. | C49: ML | D49: 1200 | G49: =ROUND(F49*D49,2) -> 0
A50: 2 | B50: CONSTITUYENTES Y PEZ VELA (FIDEPAZ)
A51: A | B51: REDUCTOR DE VELOCIDAD CONCRETO ASFÁLTICO
A52: A.1 | B52: CONSTRUCCIÓN DE REDUCTOR DE VELOCIDAD CON MEZCLA ASFÁLTICA EN FRÍO, TIPO TRAPEZOIDAL CON MEDIDAS DE 4.80x10.6x0.12m, PINTADO CON RAYAS DIAGONALES CONFORME A NORMATIVA. INCLUYE: MANO DE OBRA, MATERIAL, EQUIPO Y HERRAMIENTA PARA SU CORRECTA INSTALACION. P.U.O.T. | C52: M3 | D52: 9.54 | G52: =ROUND(F52*D52,2) -> 0
A53: B | B53: SEÑALAMIENTO VERTICAL
A54: B.1 | B54: SUMINISTRO E INSTALACION DE SEÑALAMIENTO TIPO SP-41 CON DIMENSIONES DE 86x86cm CON LAMINA GALVANIZADA CALIBRE 16, INCLUYE: MANO DE OBRA, MATERIALES, EQUIPO Y HERRAMIENTA NECESARIA PARA LA CORRECTA INSTALACIÓN. P.U.O.T. | C54: PZA | D54: 8 | G54: =ROUND(F54*D54,2) -> 0
A55: B.2 | B55: SUMINISTRO E INSTALACION DE SEÑALAMIENTO TIPO SP-41B CON DIMENSIONES DE 86x86cm CON LAMINA GALVANIZADA CALIBRE 16, INCLUYE: MANO DE OBRA, MATERIALES, EQUIPO Y HERRAMIENTA NECESARIA PARA LA CORRECTA INSTALACIÓN P.U.O.T. | C55: PZA | D55: 4 | G55: =ROUND(F55*D55,2) -> 0
A56: B.3 | B56: SUMINISTRO E INSTALACION DE SEÑALAMIENTO TIPO SR-9 (50 KM/HR) CON DIMENSIONES DE 86x86cm CON LAMINA GALVANIZADA CALIBRE 16, INCLUYE: MANO DE OBRA, MATERIALES, EQUIPO Y HERRAMIENTA NECESARIA PARA LA CORRECTA INSTALACIÓN P.U.O.T. | C56: PZA | D56: 4 | G56: 0
A57: B.4 | B57: SUMINISTRO E INSTALACION DE SEÑALAMIENTO TIPO SR-9 (30 KM/HR) CON DIMENSIONES DE 86x86cm CON LAMINA GALVANIZADA CALIBRE 16, INCLUYE: MANO DE OBRA, MATERIALES, EQUIPO Y HERRAMIENTA NECESARIA PARA LA CORRECTA INSTALACIÓN P.U.O.T. | C57: PZA | D57: 4 | G57: 0
A58: B.5 | B58: SUMINISTRO E INSTALACION DE SEÑALAMIENTO TIPO SP-12 CON DIMENSIONES DE 86x86cm CON LAMINA GALVANIZADA CALIBRE 16, INCLUYE: MANO DE OBRA, MATERIALES, EQUIPO Y HERRAMIENTA NECESARIA PARA LA CORRECTA INSTALACIÓN P.U.O.T. | C58: PZA | D58: 4 | G58: 0
A59: B.6 | B59: SUMINISTRO E INSTALACION DE SEÑALAMIENTO TIPO SP-12A CON DIMENSIONES DE 86x86cm CON LAMINA GALVANIZADA CALIBRE 16, INCLUYE: MANO DE OBRA, MATERIALES, EQUIPO Y HERRAMIENTA NECESARIA PARA LA CORRECTA INSTALACIÓN P.U.O.T. | C59: PZA | D59: 4 | G59: 0
A60: B.7 | B60: SUMINISTRO E INSTALACION DE SEÑALAMIENTO TIPO SP-A CON DIMENSIONES DE 122x30cm CON LAMINA GALVANIZADA CALIBRE 16, INCLUYE: MANO DE OBRA, MATERIALES, EQUIPO Y HERRAMIENTA NECESARIA PARA LA CORRECTA INSTALACIÓN P.U.O.T. | C60: PZA | D60: 16 | G60: 0
A61: C | B61: SEÑALAMIENTO HORIZONTAL
A62: C.1 | B62: RAYAS CON ESPACIAMIENTO LOGARITMICO REALZADAS CON MEZCLA ASFÁLTICA Y PINTADAS M-9 TIPO 20/13 COLOR BLANCO CON ANCHO DE 60 CM Y 1 CM DE ESPESOR EN AMBOS SENTIDOS DE CIRCULACION PREVIO AL REDUCTOR DE VELOCIDAD, INCLUYE: MANO DE OBRA, HERRAMIENTA, EQUIPO MENOR ASI COMO EL EQUIPO NECESARIO PARA SU CORRECTA INSTALACIÓN. P.U.O.T. | C62: ML | D62: =10.6*13 -> 137.8 | G62: =ROUND(F62*D62,2) -> 0
A63: C.2 | B63: RAYA SEPARADORA DE SENTIDOS DE CIRCULACIÓN M-1.1 COLOR AMARILLO CON ANCHO DE 15 cm EN AMBOS SENTIDOS DE CIRCULACION, INCLUYE: MANO DE OBRA, EQUIPO, HERRAMIENTA, ASI COMO EL EQUIPO NECESARIO PARA SU CORRECTA INSTALACIÓN, P.U.O.T. | C63: ML | D63: 600 | G63: 0
A64: C.3 | B64: RAYA SEPARADORA DE CARRIL M-2.3 COLOR BLANCO CON ANCHO DE 15 cm EN AMBOS SENTIDOS DE CIRCULACION, INCLUYE: MANO DE OBRA, EQUIPO, HERRAMIENTA, ASI COMO EL EQUIPO NECESARIO PARA SU CORRECTA INSTALACIÓN, P.U.O.T. | C64: ML | D64: 600 | G64: 0
A65: C.4 | B65: RAYA A LA ORILLA DERECHA M-3.1 COLOR BLANCO CON ANCHO DE 15 cm EN AMBOS SENTIDOS DE CIRCULACION, INCLUYE: MANO DE OBRA, EQUIPO, HERRAMIENTA, ASI COMO EL EQUIPO NECESARIO PARA SU CORRECTA INSTALACIÓN, P.U.O.T. | C65: ML | D65: 600 | G65: 0
A66: C.5 | B66: BOTÓN REFLEJANTE SOBRE EL PAVIMENTO (VIALETA) DE 10X10CM COLOR AMARILLO EN DOS CARAS BRM-A2 SOBRE RAYA M-1.1, FIJADO CON PEGAMENTO EPÓXICO PARA VIALETAS. INCLUYE: MANO DE OBRA, EQUIPO, HERRAMIENTA, ASI COMO EL EQUIPO NECESARIO PARA SU CORRECTA INSTALACIÓN, P.U.O.T. | C66: PZA | D66: =D63/15+2 -> 42 | G66: 0
A67: C.6 | B67: BOTÓN REFLEJANTE SOBRE EL PAVIMENTO (VIALETA) DE 10X10CM COLOR BLANCO EN UNA CARA BRM-B1 SOBRE RAYA M-2.3, FIJADO CON PEGAMENTO EPÓXICO PARA VIALETAS. INCLUYE: MANO DE OBRA, EQUIPO, HERRAMIENTA, ASI COMO EL EQUIPO NECESARIO PARA SU CORRECTA INSTALACIÓN, P.U.O.T. | C67: PZA | D67: =D64/30+2 -> 22 | G67: 0
A68: C.7 | B68: BOTÓN REFLEJANTE SOBRE EL PAVIMENTO (VIALETA) DE 10X10CM COLOR BLANCO EN UNA CARA BRM-B1 SOBRE RAYA M-3.1,FIJADO CON PEGAMENTO EPÓXICO PARA VIALETAS. INCLUYE: MANO DE OBRA, EQUIPO, HERRAMIENTA, ASI COMO EL EQUIPO NECESARIO PARA SU CORRECTA INSTALACIÓN, P.U.O.T. | C68: PZA | D68: =D65/30+2 -> 22 | G68: 0
A69: C.8 | B69: SUMINISTRO Y APLICACIÓN DE PINTURA VINILICA AHULADA, EN COLOR BLANCO A DOS MANOS EN GUANICIÓN DE CONCRETO EXISTENTE LADO DERECHO, INCLUYE: PREPARACION DE LA SUPERFICIE, LIMPIEZA, MATERIALES, MANO DE OBRA Y HERRAMIENTA, ASÍ COMO LO NECESARIO PARA SU CORRECTA APLICACIÓN, P.U.O.T. | C69: ML | D69: 600 | G69: 0
A70: C.9 | B70: SUMINISTRO Y APLICACIÓN DE PINTURA VINILICA AHULADA, EN COLOR AMARILLO A DOS MANOS EN GUANICIÓN CENTRAL EXISTENTE DE CONCRETO, INCLUYE: PREPARACION DE LA SUPERFICIE, LIMPIEZA, MATERIALES, MANO DE OBRA Y HERRAMIENTA, ASÍ COMO LO NECESARIO PARA SU CORRECTA APLICACIÓN, P.U.O.T. | C70: ML | D70: 1200 | G70: 0
A71: D | B71: GUARNICIONES
A72: D.1 | B72: CONSTRUCCION DE GUARNICION DENTADA DE CONCRETO F´c=150 kg/cm2. R.N. T.M.A. 19 MM. DE 15X20X40 @60 CM INTERMITENTE, DE SECCION TRAPEZOIDAL, CORTE DE JUNTAS VERTICALES CON CORTADORA DE DISCO DE DIAMANTE A UNA PROFUNDIDAD DE 1/3 DEL PERALTE DE LA GUARNICION DENTADA, LA MODULACION SERÁ INDICADA POR SUPERVISIÓN, SELLADO DE LA JUNTA CON CINTILLA DE POLIETILENO Y SELLADOR AUTONIVELANTE A BASE DE POLIURETANO-ASFALTO TIPO SONOMERIC 1 Ó SIMILAR. SUMINISTRO Y APLICACIÓN DE PINTURA VINILICA AHULADA, EN COLOR BLANCO A DOS MANOS EN GUANICIÓN DENTADA. INCLUYE: CIMBRA, DESCIMBRADO, ELABORACION, COLADO, VIBRADO Y CURADO DEL CONCRETO, TRANSPORTE A LA SIGUIENTE POSICION, EQUIPO, HERRAMIENTA, MANO DE OBRA Y TODO LO NECESARIO PARA LA CORRECTA EJECUCIÓN DE LOS TRABAJOS. P.U.O.T. | C72: ML | D72: 102 | G72: =ROUND(F72*D72,2) -> 0
A73: 3 | B73: LIBRAMIENTO OCEGUERA Y CALAFIA (CERRO ATRAVESADO)
A74: A | B74: REDUCTOR DE VELOCIDAD CONCRETO ASFÁLTICO
A75: A.1 | B75: CONSTRUCCIÓN DE REDUCTOR DE VELOCIDAD CON MEZCLA ASFÁLTICA EN FRÍO, TIPO TRAPEZOIDAL CON MEDIDAS DE 4.80x10.6x0.12m, PINTADO CON RAYAS DIAGONALES CONFORME A NORMATIVA. INCLUYE: MANO DE OBRA, MATERIAL, EQUIPO Y HERRAMIENTA PARA SU CORRECTA INSTALACION. P.U.O.T. | C75: M3 | D75: 13.32 | G75: =ROUND(F75*D75,2) -> 0
A76: B | B76: SEÑALAMIENTO VERTICAL
A77: B.1 | B77: SUMINISTRO E INSTALACION DE SEÑALAMIENTO TIPO SP-41 CON DIMENSIONES DE 71x71cm CON LAMINA GALVANIZADA CALIBRE 16, INCLUYE: MANO DE OBRA, MATERIALES, EQUIPO Y HERRAMIENTA NECESARIA PARA LA CORRECTA INSTALACIÓN. P.U.O.T. | C77: PZA | D77: 4 | G77: =ROUND(F77*D77,2) -> 0
A78: B.2 | B78: SUMINISTRO E INSTALACION DE SEÑALAMIENTO TIPO SP-41B CON DIMENSIONES DE 71x71cm CON LAMINA GALVANIZADA CALIBRE 16, INCLUYE: MANO DE OBRA, MATERIALES, EQUIPO Y HERRAMIENTA NECESARIA PARA LA CORRECTA INSTALACIÓN P.U.O.T. | C78: PZA | D78: 2 | G78: =ROUND(F78*D78,2) -> 0
A79: B.3 | B79: SUMINISTRO E INSTALACION DE SEÑALAMIENTO TIPO SR-9 (50 KM/HR) CON DIMENSIONES DE 71x71cm CON LAMINA GALVANIZADA CALIBRE 16, INCLUYE: MANO DE OBRA, MATERIALES, EQUIPO Y HERRAMIENTA NECESARIA PARA LA CORRECTA INSTALACIÓN P.U.O.T. | C79: PZA | D79: 2 | G79: 0
A80: B.4 | B80: SUMINISTRO E INSTALACION DE SEÑALAMIENTO TIPO SR-9 (30 KM/HR) CON DIMENSIONES DE 71x71cm CON LAMINA GALVANIZADA CALIBRE 16, INCLUYE: MANO DE OBRA, MATERIALES, EQUIPO Y HERRAMIENTA NECESARIA PARA LA CORRECTA INSTALACIÓN P.U.O.T. | C80: PZA | D80: 2 | G80: 0
A81: B.5 | B81: SUMINISTRO E INSTALACION DE SEÑALAMIENTO TIPO SP-12 CON DIMENSIONES DE 71x71cm CON LAMINA GALVANIZADA CALIBRE 16, INCLUYE: MANO DE OBRA, MATERIALES, EQUIPO Y HERRAMIENTA NECESARIA PARA LA CORRECTA INSTALACIÓN P.U.O.T. | C81: PZA | D81: 2 | G81: 0
A82: B.6 | B82: SUMINISTRO E INSTALACION DE SEÑALAMIENTO TIPO SP-12A CON DIMENSIONES DE 71x71cm CON LAMINA GALVANIZADA CALIBRE 16, INCLUYE: MANO DE OBRA, MATERIALES, EQUIPO Y HERRAMIENTA NECESARIA PARA LA CORRECTA INSTALACIÓN P.U.O.T. | C82: PZA | D82: 2 | G82: 0
A83: B.7 | B83: SUMINISTRO E INSTALACION DE SEÑALAMIENTO TIPO SP-A CON DIMENSIONES DE 100x25cm CON LAMINA GALVANIZADA CALIBRE 16, INCLUYE: MANO DE OBRA, MATERIALES, EQUIPO Y HERRAMIENTA NECESARIA PARA LA CORRECTA INSTALACIÓN P.U.O.T. | C83: PZA | D83: 8 | G83: 0
A84: C | B84: SEÑALAMIENTO HORIZONTAL
A85: C.1 | B85: RAYAS CON ESPACIAMIENTO LOGARITMICO REALZADAS CON MEZCLA ASFÁLTICA Y PINTADAS M-9 TIPO 20/13 COLOR BLANCO CON ANCHO DE 60 CM Y 1 CM DE ESPESOR EN AMBOS SENTIDOS DE CIRCULACION PREVIO AL REDUCTOR DE VELOCIDAD, INCLUYE: MANO DE OBRA, HERRAMIENTA, EQUIPO MENOR ASI COMO EL EQUIPO NECESARIO PARA SU CORRECTA INSTALACIÓN. P.U.O.T. | C85: ML | D85: =7.4*33 -> 244.2 | G85: =ROUND(F85*D85,2) -> 0
A86: C.2 | B86: RAYA SEPARADORA DE SENTIDOS DE CIRCULACIÓN M-1.1 COLOR AMARILLO CON ANCHO DE 15 cm EN AMBOS SENTIDOS DE CIRCULACION, INCLUYE: MANO DE OBRA, EQUIPO, HERRAMIENTA, ASI COMO EL EQUIPO NECESARIO PARA SU CORRECTA INSTALACIÓN, P.U.O.T. | C86: ML | D86: 900 | G86: =ROUND(F86*D86,2) -> 0
A87: C.3 | B87: RAYA A LA ORILLA DERECHA M-3.1 COLOR BLANCO CON ANCHO DE 15 cm EN AMBOS SENTIDOS DE CIRCULACION, INCLUYE: MANO DE OBRA, EQUIPO, HERRAMIENTA, ASI COMO EL EQUIPO NECESARIO PARA SU CORRECTA INSTALACIÓN, P.U.O.T. | C87: ML | D87: 1800 | G87: =ROUND(F87*D87,2) -> 0
A88: C.4 | B88: BOTÓN REFLEJANTE SOBRE EL PAVIMENTO (VIALETA) DE 10X10CM COLOR AMARILLO EN DOS CARAS BRM-A2 SOBRE RAYA M-1.1, FIJADO CON PEGAMENTO EPÓXICO PARA VIALETAS. INCLUYE: MANO DE OBRA, EQUIPO, HERRAMIENTA, ASI COMO EL EQUIPO NECESARIO PARA SU CORRECTA INSTALACIÓN, P.U.O.T. | C88: PZA | D88: =D86/15+2 -> 62 | G88: =ROUND(F88*D88,2) -> 0
A89: C.5 | B89: BOTÓN REFLEJANTE SOBRE EL PAVIMENTO (VIALETA) DE 10X10CM COLOR BLANCO EN UNA CARA BRM-B1 SOBRE RAYA M-3.1,FIJADO CON PEGAMENTO EPÓXICO PARA VIALETAS. INCLUYE: MANO DE OBRA, EQUIPO, HERRAMIENTA, ASI COMO EL EQUIPO NECESARIO PARA SU CORRECTA INSTALACIÓN, P.U.O.T. | C89: PZA | D89: =D87/30+2 -> 62 | G89: =ROUND(F89*D89,2) -> 0
A90: 4 | B90: LIBRAMIENTO DANIEL ROLDÁN Y BLVD. FORJADORES DE SUDCALIFORNIA
A91: D | B91: GUARNICIONES
A92: D.1 | B92: CONSTRUCCION DE GUARNICIÓN DE CONCRETO F´c=150 kg/cm2. R.N. T.M.A. 19 MM. DE 15X20X40cm DE SECCION TRAPEZOIDAL, CORTE DE JUNTAS VERTICALES CON CORTADORA DE DISCO DE DIAMANTE A UNA PROFUNDIDAD DE 1/3 DEL PERALTE DE LA GUARNICION, LA MODULACION SERÁ INDICADA POR SUPERVISIÓN, SELLADO DE LA JUNTA CON CINTILLA DE POLIETILENO Y SELLADOR AUTONIVELANTE A BASE DE POLIURETANO-ASFALTO TIPO SONOMERIC 1 Ó SIMILAR. SUMINISTRO Y APLICACIÓN DE PINTURA VINILICA AHULADA, EN COLOR AMARILLO A DOS MANOS EN GUANICIÓN. INCLUYE: CIMBRA, DESCIMBRADO, ELABORACION, COLADO, VIBRADO Y CURADO DEL CONCRETO, TRANSPORTE A LA SIGUIENTE POSICION, EQUIPO, HERRAMIENTA, MANO DE OBRA Y TODO LO NECESARIO PARA LA CORRECTA EJECUCIÓN DE LOS TRABAJOS. P.U.O.T. | C92: ML | D92: 134 | G92: =ROUND(F92*D92,2) -> 0
A93: 5 | B93: PARQUE CALLE REGIDORES. LÁZARO CÁRDENAS
A94: A | B94: REDUCTOR DE VELOCIDAD CONCRETO ASFÁLTICO
A95: A.1 | B95: CONSTRUCCIÓN DE REDUCTOR DE VELOCIDAD CON MEZCLA ASFÁLTICA EN FRÍO, TIPO TRAPEZOIDAL CON MEDIDAS DE 4.80x10.6x0.12m, PINTADO CON RAYAS DIAGONALES CONFORME A NORMATIVA. INCLUYE: MANO DE OBRA, MATERIAL, EQUIPO Y HERRAMIENTA PARA SU CORRECTA INSTALACION. P.U.O.T. | C95: M3 | D95: =5.4+6.75 -> 12.15 | G95: =ROUND(F95*D95,2) -> 0
A96: B | B96: SEÑALAMIENTO VERTICAL
A97: B.1 | B97: SUMINISTRO E INSTALACION DE SEÑALAMIENTO TIPO SP-41 CON DIMENSIONES DE 61x61cm CON LAMINA GALVANIZADA CALIBRE 16, INCLUYE: MANO DE OBRA, MATERIALES, EQUIPO Y HERRAMIENTA NECESARIA PARA LA CORRECTA INSTALACIÓN. P.U.O.T. | C97: PZA | D97: 2 | G97: =ROUND(F97*D97,2) -> 0
A98: B.2 | B98: SUMINISTRO E INSTALACION DE SEÑALAMIENTO TIPO SP-41B CON DIMENSIONES DE 61x61cm CON LAMINA GALVANIZADA CALIBRE 16, INCLUYE: MANO DE OBRA, MATERIALES, EQUIPO Y HERRAMIENTA NECESARIA PARA LA CORRECTA INSTALACIÓN P.U.O.T. | C98: PZA | D98: 2 | G98: =ROUND(F98*D98,2) -> 0
A99: B.3 | B99: SUMINISTRO E INSTALACION DE SEÑALAMIENTO TIPO SP-A CON DIMENSIONES DE 85x20cm CON LAMINA GALVANIZADA CALIBRE 16, INCLUYE: MANO DE OBRA, MATERIALES, EQUIPO Y HERRAMIENTA NECESARIA PARA LA CORRECTA INSTALACIÓN P.U.O.T. | C99: PZA | D99: 2 | G99: =ROUND(F99*D99,2) -> 0
A100: C | B100: SEÑALAMIENTO HORIZONTAL
A101: C.1 | B101: RAYA SEPARADORA DE SENTIDOS DE CIRCULACIÓN M-1.1 COLOR AMARILLO CON ANCHO DE 15 cm EN AMBOS SENTIDOS DE CIRCULACION, INCLUYE: MANO DE OBRA, EQUIPO, HERRAMIENTA, ASI COMO EL EQUIPO NECESARIO PARA SU CORRECTA INSTALACIÓN, P.U.O.T. | C101: ML | D101: 150 | G101: =ROUND(F101*D101,2) -> 0
A102: C.2 | B102: RAYA A LA ORILLA DERECHA M-3.1 COLOR BLANCO CON ANCHO DE 15 cm EN AMBOS SENTIDOS DE CIRCULACION, INCLUYE: MANO DE OBRA, EQUIPO, HERRAMIENTA, ASI COMO EL EQUIPO NECESARIO PARA SU CORRECTA INSTALACIÓN, P.U.O.T. | C102: ML | D102: 150 | G102: 0
A103: C.3 | B103: BOTÓN REFLEJANTE SOBRE EL PAVIMENTO (VIALETA) DE 10X10CM COLOR AMARILLO EN DOS CARAS BRM-A2 SOBRE RAYA M-1.1, FIJADO CON PEGAMENTO EPÓXICO PARA VIALETAS. INCLUYE: MANO DE OBRA, EQUIPO, HERRAMIENTA, ASI COMO EL EQUIPO NECESARIO PARA SU CORRECTA INSTALACIÓN, P.U.O.T. | C103: PZA | D103: =D101/15+2 -> 12 | G103: 0
A104: C.4 | B104: BOTÓN REFLEJANTE SOBRE EL PAVIMENTO (VIALETA) DE 10X10CM COLOR BLANCO EN UNA CARA BRM-B1 SOBRE RAYA M-3.1,FIJADO CON PEGAMENTO EPÓXICO PARA VIALETAS. INCLUYE: MANO DE OBRA, EQUIPO, HERRAMIENTA, ASI COMO EL EQUIPO NECESARIO PARA SU CORRECTA INSTALACIÓN, P.U.O.T. | C104: PZA | D104: =D102/30+2 -> 7 | G104: 0
A105: C.5 | B105: SUMINISTRO Y APLICACIÓN DE PINTURA VINILICA AHULADA, EN COLOR BLANCO A DOS MANOS EN GUANICIÓN DE CONCRETO EXISTENTE LADO DERECHO, INCLUYE: PREPARACION DE LA SUPERFICIE, LIMPIEZA, MATERIALES, MANO DE OBRA Y HERRAMIENTA, ASÍ COMO LO NECESARIO PARA SU CORRECTA APLICACIÓN, P.U.O.T. | C105: ML | D105: 150 | G105: 0
A106: C.6 | B106: SUMINISTRO Y APLICACIÓN DE PINTURA VINILICA AHULADA, EN COLOR AMARILLO A DOS MANOS EN GUANICIÓN CENTRAL EXISTENTE DE CONCRETO, INCLUYE: PREPARACION DE LA SUPERFICIE, LIMPIEZA, MATERIALES, MANO DE OBRA Y HERRAMIENTA, ASÍ COMO LO NECESARIO PARA SU CORRECTA APLICACIÓN, P.U.O.T. | C106: ML | D106: 150 | G106: 0
A107: D | B107: GUARNICIONES
A108: D.1 | B108: CONSTRUCCION DE GUARNICIÓN DE CONCRETO F´c=150 kg/cm2. R.N. T.M.A. 19 MM. DE 15X20X40cm DE SECCION TRAPEZOIDAL, CORTE DE JUNTAS VERTICALES CON CORTADORA DE DISCO DE DIAMANTE A UNA PROFUNDIDAD DE 1/3 DEL PERALTE DE LA GUARNICION, LA MODULACION SERÁ INDICADA POR SUPERVISIÓN, SELLADO DE LA JUNTA CON CINTILLA DE POLIETILENO Y SELLADOR AUTONIVELANTE A BASE DE POLIURETANO-ASFALTO TIPO SONOMERIC 1 Ó SIMILAR. SUMINISTRO Y APLICACIÓN DE PINTURA VINILICA AHULADA, EN COLOR AMARILLO A DOS MANOS EN GUANICIÓN. INCLUYE: CIMBRA, DESCIMBRADO, ELABORACION, COLADO, VIBRADO Y CURADO DEL CONCRETO, TRANSPORTE A LA SIGUIENTE POSICION, EQUIPO, HERRAMIENTA, MANO DE OBRA Y TODO LO NECESARIO PARA LA CORRECTA EJECUCIÓN DE LOS TRABAJOS. P.U.O.T. | C108: ML | D108: 57 | G108: =ROUND(F108*D108,2) -> 0
A109: 6 | B109: OCEANO ATLÁNTICO Y MAR MEDITERRÁNEO (CONCHALITO)
A110: A | B110: REDUCTOR DE VELOCIDAD CONCRETO ASFÁLTICO
A111: A.1 | B111: CONSTRUCCIÓN DE REDUCTOR DE VELOCIDAD CON MEZCLA ASFÁLTICA EN FRÍO, TIPO TRAPEZOIDAL CON MEDIDAS DE 4.80x10.6x0.12m, PINTADO CON RAYAS DIAGONALES CONFORME A NORMATIVA. INCLUYE: MANO DE OBRA, MATERIAL, EQUIPO Y HERRAMIENTA PARA SU CORRECTA INSTALACION. P.U.O.T. | C111: M3 | D111: 11.3 | G111: =ROUND(F111*D111,2) -> 0
A112: B | B112: SEÑALAMIENTO VERTICAL
A113: B.1 | B113: SUMINISTRO E INSTALACION DE SEÑALAMIENTO TIPO SP-41 CON DIMENSIONES DE 61x61cm CON LAMINA GALVANIZADA CALIBRE 16, INCLUYE: MANO DE OBRA, MATERIALES, EQUIPO Y HERRAMIENTA NECESARIA PARA LA CORRECTA INSTALACIÓN. P.U.O.T. | C113: PZA | D113: 2 | G113: =ROUND(F113*D113,2) -> 0
A114: B.2 | B114: SUMINISTRO E INSTALACION DE SEÑALAMIENTO TIPO SP-41B CON DIMENSIONES DE 61x61cm CON LAMINA GALVANIZADA CALIBRE 16, INCLUYE: MANO DE OBRA, MATERIALES, EQUIPO Y HERRAMIENTA NECESARIA PARA LA CORRECTA INSTALACIÓN P.U.O.T. | C114: PZA | D114: 2 | G114: =ROUND(F114*D114,2) -> 0
A115: B.7 | B115: SUMINISTRO E INSTALACION DE SEÑALAMIENTO TIPO SP-A CON DIMENSIONES DE 85x20cm CON LAMINA GALVANIZADA CALIBRE 16, INCLUYE: MANO DE OBRA, MATERIALES, EQUIPO Y HERRAMIENTA NECESARIA PARA LA CORRECTA INSTALACIÓN P.U.O.T. | C115: PZA | D115: 2 | G115: =ROUND(F115*D115,2) -> 0
A116: C | B116: SEÑALAMIENTO HORIZONTAL
A117: C.1 | B117: RAYA SEPARADORA DE SENTIDOS DE CIRCULACIÓN M-1.1 COLOR AMARILLO CON ANCHO DE 15 cm EN AMBOS SENTIDOS DE CIRCULACION, INCLUYE: MANO DE OBRA, EQUIPO, HERRAMIENTA, ASI COMO EL EQUIPO NECESARIO PARA SU CORRECTA INSTALACIÓN, P.U.O.T. | C117: ML | D117: 100 | G117: =ROUND(F117*D117,2) -> 0
A118: C.2 | B118: RAYA A LA ORILLA DERECHA M-3.1 COLOR BLANCO CON ANCHO DE 15 cm EN AMBOS SENTIDOS DE CIRCULACION, INCLUYE: MANO DE OBRA, EQUIPO, HERRAMIENTA, ASI COMO EL EQUIPO NECESARIO PARA SU CORRECTA INSTALACIÓN, P.U.O.T. | C118: ML | D118: 200 | G118: 0
A119: C.3 | B119: BOTÓN REFLEJANTE SOBRE EL PAVIMENTO (VIALETA) DE 10X10CM COLOR AMARILLO EN DOS CARAS BRM-A2 SOBRE RAYA M-1.1, FIJADO CON PEGAMENTO EPÓXICO PARA VIALETAS. INCLUYE: MANO DE OBRA, EQUIPO, HERRAMIENTA, ASI COMO EL EQUIPO NECESARIO PARA SU CORRECTA INSTALACIÓN, P.U.O.T. | C119: PZA | D119: =D117/15+2 -> 8.666666667 | G119: 0
A120: C.4 | B120: BOTÓN REFLEJANTE SOBRE EL PAVIMENTO (VIALETA) DE 10X10CM COLOR BLANCO EN UNA CARA BRM-B1 SOBRE RAYA M-3.1,FIJADO CON PEGAMENTO EPÓXICO PARA VIALETAS. INCLUYE: MANO DE OBRA, EQUIPO, HERRAMIENTA, ASI COMO EL EQUIPO NECESARIO PARA SU CORRECTA INSTALACIÓN, P.U.O.T. | C120: PZA | D120: =D118/30+2 -> 8.666666667 | G120: 0
A121: C.5 | B121: SUMINISTRO Y APLICACIÓN DE PINTURA VINILICA AHULADA, EN COLOR BLANCO A DOS MANOS EN GUANICIÓN DE CONCRETO EXISTENTE LADO DERECHO, INCLUYE: PREPARACION DE LA SUPERFICIE, LIMPIEZA, MATERIALES, MANO DE OBRA Y HERRAMIENTA, ASÍ COMO LO NECESARIO PARA SU CORRECTA APLICACIÓN, P.U.O.T. | C121: ML | D121: 200 | G121: 0
A122: C.6 | B122: SUMINISTRO Y APLICACIÓN DE PINTURA VINILICA AHULADA, EN COLOR AMARILLO A DOS MANOS EN GUANICIÓN CENTRAL EXISTENTE DE CONCRETO, INCLUYE: PREPARACION DE LA SUPERFICIE, LIMPIEZA, MATERIALES, MANO DE OBRA Y HERRAMIENTA, ASÍ COMO LO NECESARIO PARA SU CORRECTA APLICACIÓN, P.U.O.T. | C122: ML | D122: 100 | G122: 0
A123: 7 | B123: BLVD. FORJADORES DE SUDCALIFORNIA Y BLEDALES (LA FUENTE)
A124: B | B124: SEÑALAMIENTO VERTICAL
A125: B.1 | B125: SUMINISTRO E INSTALACION DE SEÑALAMIENTO TIPO SP-41 CON DIMENSIONES DE 86x86cm CON LAMINA GALVANIZADA CALIBRE 16, INCLUYE: MANO DE OBRA, MATERIALES, EQUIPO Y HERRAMIENTA NECESARIA PARA LA CORRECTA INSTALACIÓN. P.U.O.T. | C125: PZA | D125: 8 | G125: =ROUND(F125*D125,2) -> 0
A126: B.2 | B126: SUMINISTRO E INSTALACION DE SEÑALAMIENTO TIPO SP-41B CON DIMENSIONES DE 86x86cm CON LAMINA GALVANIZADA CALIBRE 16, INCLUYE: MANO DE OBRA, MATERIALES, EQUIPO Y HERRAMIENTA NECESARIA PARA LA CORRECTA INSTALACIÓN P.U.O.T. | C126: PZA | D126: 4 | G126: =ROUND(F126*D126,2) -> 0
A127: B.3 | B127: SUMINISTRO E INSTALACION DE SEÑALAMIENTO TIPO SR-9 (50 KM/HR) CON DIMENSIONES DE 86x86cm CON LAMINA GALVANIZADA CALIBRE 16, INCLUYE: MANO DE OBRA, MATERIALES, EQUIPO Y HERRAMIENTA NECESARIA PARA LA CORRECTA INSTALACIÓN P.U.O.T. | C127: PZA | D127: 4 | G127: 0
A128: B.4 | B128: SUMINISTRO E INSTALACION DE SEÑALAMIENTO TIPO SR-9 (30 KM/HR) CON DIMENSIONES DE 86x86cm CON LAMINA GALVANIZADA CALIBRE 16, INCLUYE: MANO DE OBRA, MATERIALES, EQUIPO Y HERRAMIENTA NECESARIA PARA LA CORRECTA INSTALACIÓN P.U.O.T. | C128: PZA | D128: 4 | G128: 0
A129: B.5 | B129: SUMINISTRO E INSTALACION DE SEÑALAMIENTO TIPO SP-12 CON DIMENSIONES DE 86x86cm CON LAMINA GALVANIZADA CALIBRE 16, INCLUYE: MANO DE OBRA, MATERIALES, EQUIPO Y HERRAMIENTA NECESARIA PARA LA CORRECTA INSTALACIÓN P.U.O.T. | C129: PZA | D129: 4 | G129: 0
A130: B.6 | B130: SUMINISTRO E INSTALACION DE SEÑALAMIENTO TIPO SP-12A CON DIMENSIONES DE 86x86cm CON LAMINA GALVANIZADA CALIBRE 16, INCLUYE: MANO DE OBRA, MATERIALES, EQUIPO Y HERRAMIENTA NECESARIA PARA LA CORRECTA INSTALACIÓN P.U.O.T. | C130: PZA | D130: 4 | G130: 0
A131: B.7 | B131: SUMINISTRO E INSTALACION DE SEÑALAMIENTO TIPO SP-A CON DIMENSIONES DE 122x30cm CON LAMINA GALVANIZADA CALIBRE 16, INCLUYE: MANO DE OBRA, MATERIALES, EQUIPO Y HERRAMIENTA NECESARIA PARA LA CORRECTA INSTALACIÓN P.U.O.T. | C131: PZA | D131: 16 | G131: 0
A132: B.8 | B132: SUMINISTRO E INSTALACION DE SEÑALAMIENTO TIPO SR-6 CON DIMENSIONES DE 30cm POR LADO CON LAMINA GALVANIZADA CALIBRE 16, INCLUYE: MANO DE OBRA, MATERIALES, EQUIPO Y HERRAMIENTA NECESARIA PARA LA CORRECTA INSTALACIÓN. P.U.O.T. | C132: PZA | D132: 1 | G132: =ROUND(F132*D132,2) -> 0
A133: B.9 | B133: SUMINISTRO E INSTALACION DE SEÑALAMIENTO TIPO SR-11A3 CON DIMENSIONES DE 30cm POR LADO CON LAMINA GALVANIZADA CALIBRE 16, INCLUYE: MANO DE OBRA, MATERIALES, EQUIPO Y HERRAMIENTA NECESARIA PARA LA CORRECTA INSTALACIÓN. P.U.O.T. | C133: PZA | D133: 2 | G133: =ROUND(F133*D133,2) -> 0
A134: B.10 | B134: SUMINISTRO E INSTALACION DE SEÑALAMIENTO TIPO SR-14 CON DIMENSIONES DE 30cm POR LADO CON LAMINA GALVANIZADA CALIBRE 16, INCLUYE: MANO DE OBRA, MATERIALES, EQUIPO Y HERRAMIENTA NECESARIA PARA LA CORRECTA INSTALACIÓN. P.U.O.T. | C134: PZA | D134: 1 | G134: =ROUND(F134*D134,2) -> 0
A135: B.11 | B135: SUMINISTRO E INSTALACION DE SEÑALAMIENTO TIPO SII-NOMENCLATURA CON LAMINA GALVANIZADA CALIBRE 16, INCLUYE: MANO DE OBRA, MATERIALES, EQUIPO Y HERRAMIENTA NECESARIA PARA LA CORRECTA INSTALACIÓN. P.U.O.T. | C135: PZA | D135: 4 | G135: =ROUND(F135*D135,2) -> 0
A136: C | B136: SEÑALAMIENTO HORIZONTAL
A137: C.1 | B137: RAYAS CON ESPACIAMIENTO LOGARITMICO REALZADAS CON MEZCLA ASFÁLTICA Y PINTADAS M-9 TIPO 30/20 COLOR BLANCO CON ANCHO DE 60 CM Y 1 CM DE ESPESOR EN AMBOS SENTIDOS DE CIRCULACION PREVIO AL REDUCTOR DE VELOCIDAD, INCLUYE: MANO DE OBRA, HERRAMIENTA, EQUIPO MENOR ASI COMO EL EQUIPO NECESARIO PARA SU CORRECTA INSTALACIÓN. P.U.O.T. | C137: ML | D137: =(15.4+16)*20 -> 628 | G137: =ROUND(F137*D137,2) -> 0
A138: C.2 | B138: RAYA SEPARADORA DE SENTIDOS DE CIRCULACIÓN M-1.1 COLOR AMARILLO CON ANCHO DE 15 cm EN AMBOS SENTIDOS DE CIRCULACION, INCLUYE: MANO DE OBRA, EQUIPO, HERRAMIENTA, ASI COMO EL EQUIPO NECESARIO PARA SU CORRECTA INSTALACIÓN, P.U.O.T. | C138: ML | D138: =354+501 -> 855 | G138: 0
A139: C.3 | B139: RAYA SEPARADORA DE CARRIL M-2.3 COLOR BLANCO CON ANCHO DE 15 cm EN AMBOS SENTIDOS DE CIRCULACION, INCLUYE: MANO DE OBRA, EQUIPO, HERRAMIENTA, ASI COMO EL EQUIPO NECESARIO PARA SU CORRECTA INSTALACIÓN, P.U.O.T. | C139: ML | D139: =480*4 -> 1920 | G139: 0
A140: C.4 | B140: RAYA A LA ORILLA DERECHA M-3.1 COLOR BLANCO CON ANCHO DE 15 cm EN AMBOS SENTIDOS DE CIRCULACION, INCLUYE: MANO DE OBRA, EQUIPO, HERRAMIENTA, ASI COMO EL EQUIPO NECESARIO PARA SU CORRECTA INSTALACIÓN, P.U.O.T. | C140: ML | D140: =480*2 -> 960 | G140: 0
A141: C.5 | B141: RAYA PARA ENTRADAS Y SALIDAS M-4.1 COLOR BLANCO CON ANCHO DE 15 cm EN AMBOS SENTIDOS DE CIRCULACION, INCLUYE: MANO DE OBRA, EQUIPO, HERRAMIENTA, ASI COMO EL EQUIPO NECESARIO PARA SU CORRECTA INSTALACIÓN, P.U.O.T. | C141: ML | D141: 190 | G141: =ROUND(F141*D141,2) -> 0
A142: C.7 | B142: RAYA DE ALTO M-6 DE 60CM DE ANCHO. INCLUYE PREPARACION DE LA SUPERFICIE, LIMPIEZA, MATERIALES, MANO DE OBRA Y HERRAMIENTA, ASÍ COMO LO NECESARIO PARA SU CORRECTA APLICACIÓN, P.U.O.T. | C142: ML | D142: =4.3+13 -> 17.3 | G142: =ROUND(F142*D142,2) -> 0
A143: C.8 | B143: RAYAS PARA CRUCE DE PEATONES M-7 DE 40 CM DE ANCHO Y 4M DE LARGO. INCLUYE PREPARACION DE LA SUPERFICIE, LIMPIEZA, MATERIALES, MANO DE OBRA Y HERRAMIENTA, ASÍ COMO LO NECESARIO PARA SU CORRECTA APLICACIÓN, P.U.O.T. | C143: ML | D143: =10.7*2 -> 21.4 | G143: =ROUND(F143*D143,2) -> 0
A144: C.9 | B144: FLECHA SOBRE CARRILES DE 5M DE LONGITUD M-11.1. INCLUYE PREPARACION DE LA SUPERFICIE, LIMPIEZA, MATERIALES, MANO DE OBRA Y HERRAMIENTA, ASÍ COMO LO NECESARIO PARA SU CORRECTA APLICACIÓN, P.U.O.T. | C144: PZA | D144: 17 | G144: =ROUND(F144*D144,2) -> 0
A145: C.10 | B145: MARCAS PARA INDICAR VELOCIDAD EN EL CARRIL M-11.4. INCLUYE PREPARACION DE LA SUPERFICIE, LIMPIEZA, MATERIALES, MANO DE OBRA Y HERRAMIENTA, ASÍ COMO LO NECESARIO PARA SU CORRECTA APLICACIÓN, P.U.O.T. | C145: PZA | D145: 7 | G145: =ROUND(F145*D145,2) -> 0
A146: C.6 | B146: BOTÓN REFLEJANTE SOBRE EL PAVIMENTO (VIALETA) DE 10X10CM COLOR AMARILLO EN DOS CARAS BRM-A2 SOBRE RAYA M-1.1, FIJADO CON PEGAMENTO EPÓXICO PARA VIALETAS. INCLUYE: MANO DE OBRA, EQUIPO, HERRAMIENTA, ASI COMO EL EQUIPO NECESARIO PARA SU CORRECTA INSTALACIÓN, P.U.O.T. | C146: PZA | D146: =D138/15+2 -> 59 | G146: 0
A147: C.7 | B147: BOTÓN REFLEJANTE SOBRE EL PAVIMENTO (VIALETA) DE 10X10CM COLOR BLANCO EN UNA CARA BRM-B1 SOBRE RAYA M-2.3, FIJADO CON PEGAMENTO EPÓXICO PARA VIALETAS. INCLUYE: MANO DE OBRA, EQUIPO, HERRAMIENTA, ASI COMO EL EQUIPO NECESARIO PARA SU CORRECTA INSTALACIÓN, P.U.O.T. | C147: PZA | D147: =D139/30+2 -> 66 | G147: 0
A148: C.8 | B148: BOTÓN REFLEJANTE SOBRE EL PAVIMENTO (VIALETA) DE 10X10CM COLOR BLANCO EN UNA CARA BRM-B1 SOBRE RAYA M-4.1,FIJADO CON PEGAMENTO EPÓXICO PARA VIALETAS. INCLUYE: MANO DE OBRA, EQUIPO, HERRAMIENTA, ASI COMO EL EQUIPO NECESARIO PARA SU CORRECTA INSTALACIÓN, P.U.O.T. | C148: PZA | D148: =ROUNDUP(D141/30,0)+1 -> 8 | G148: 0
A149: C.9 | B149: BOTÓN REFLEJANTE SOBRE EL PAVIMENTO (VIALETA) DE 10X10CM COLOR BLANCO EN UNA CARA BRM-B1 SOBRE RAYA M-3.1,FIJADO CON PEGAMENTO EPÓXICO PARA VIALETAS. INCLUYE: MANO DE OBRA, EQUIPO, HERRAMIENTA, ASI COMO EL EQUIPO NECESARIO PARA SU CORRECTA INSTALACIÓN, P.U.O.T. | C149: PZA | D149: =ROUNDUP(D141/30,0)+1 -> 8 | G149: =ROUND(F149*D149,2) -> 0
A150: C.10 | B150: SUMINISTRO Y APLICACIÓN DE PINTURA VINILICA AHULADA, EN COLOR BLANCO A DOS MANOS EN GUANICIÓN DE CONCRETO EXISTENTE LADO DERECHO, INCLUYE: PREPARACION DE LA SUPERFICIE, LIMPIEZA, MATERIALES, MANO DE OBRA Y HERRAMIENTA, ASÍ COMO LO NECESARIO PARA SU CORRECTA APLICACIÓN, P.U.O.T. | C150: ML | D150: =137+47 -> 184 | G150: 0
A151: C.11 | B151: SUMINISTRO Y APLICACIÓN DE PINTURA VINILICA AHULADA, EN COLOR AMARILLO A DOS MANOS EN GUANICIÓN CENTRAL EXISTENTE DE CONCRETO, INCLUYE: PREPARACION DE LA SUPERFICIE, LIMPIEZA, MATERIALES, MANO DE OBRA Y HERRAMIENTA, ASÍ COMO LO NECESARIO PARA SU CORRECTA APLICACIÓN, P.U.O.T. | C151: ML | D151: =D139 -> 1920 | G151: 0
A152: D | B152: GUARNICIONES
A153: D.1 | B153: RETIRO DE GUARNICIONES DE CONCRETO EXISTENTES POR AMPLIACIÓN DE CALZADA. INCLUYE: CORTE CON CORTADORA DE DISCO, CARGA Y RETIRO DE ESCOMBRO FUERA DE LA OBRA HASTA EL LUGAR INDICADO POR LA SUPERVISION, EQUIPO, HERRAMIENTA, MANO DE OBRA Y TODO LO NECESARIO PARA LA CORRECTA EJECUCIÓN DE LOS TRABAJOS. | C153: ML | D153: 104 | G153: 0
A154: D.2 | B154: CONSTRUCCION DE GUARNICIÓN DE CONCRETO F´c=150 kg/cm2. R.N. T.M.A. 19 MM. DE 15X20X40cm DE SECCION TRAPEZOIDAL, CORTE DE JUNTAS VERTICALES CON CORTADORA DE DISCO DE DIAMANTE A UNA PROFUNDIDAD DE 1/3 DEL PERALTE DE LA GUARNICION, LA MODULACION SERÁ INDICADA POR SUPERVISIÓN, SELLADO DE LA JUNTA CON CINTILLA DE POLIETILENO Y SELLADOR AUTONIVELANTE A BASE DE POLIURETANO-ASFALTO TIPO SONOMERIC 1 Ó SIMILAR. SUMINISTRO Y APLICACIÓN DE PINTURA VINILICA AHULADA, EN COLOR AMARILLO A DOS MANOS EN GUANICIÓN. INCLUYE: CIMBRA, DESCIMBRADO, ELABORACION, COLADO, VIBRADO Y CURADO DEL CONCRETO, TRANSPORTE A LA SIGUIENTE POSICION, EQUIPO, HERRAMIENTA, MANO DE OBRA Y TODO LO NECESARIO PARA LA CORRECTA EJECUCIÓN DE LOS TRABAJOS. P.U.O.T. | C154: ML | D154: =104+215+77 -> 396 | G154: =ROUND(F154*D154,2) -> 0
A155: D.3 | B155: CONSTRUCCION DE GUARNICIÓN DE CONCRETO F´c=150 kg/cm2. R.N. T.M.A. 19 MM. DE 15X20X40cm DE SECCION TRAPEZOIDAL, CORTE DE JUNTAS VERTICALES CON CORTADORA DE DISCO DE DIAMANTE A UNA PROFUNDIDAD DE 1/3 DEL PERALTE DE LA GUARNICION, LA MODULACION SERÁ INDICADA POR SUPERVISIÓN, SELLADO DE LA JUNTA CON CINTILLA DE POLIETILENO Y SELLADOR AUTONIVELANTE A BASE DE POLIURETANO-ASFALTO TIPO SONOMERIC 1 Ó SIMILAR. SUMINISTRO Y APLICACIÓN DE PINTURA VINILICA AHULADA, EN COLOR BLANCO A DOS MANOS EN GUANICIÓN. INCLUYE: CIMBRA, DESCIMBRADO, ELABORACION, COLADO, VIBRADO Y CURADO DEL CONCRETO, TRANSPORTE A LA SIGUIENTE POSICION, EQUIPO, HERRAMIENTA, MANO DE OBRA Y TODO LO NECESARIO PARA LA CORRECTA EJECUCIÓN DE LOS TRABAJOS. P.U.O.T. | C155: ML | D155: 73 | G155: =ROUND(F155*D155,2) -> 0
A156: D.4 | B156: CONSTRUCCION DE GUARNICION DENTADA DE CONCRETO F´c=150 kg/cm2. R.N. T.M.A. 19 MM. DE 15X20X40 @60 CM INTERMITENTE, DE SECCION TRAPEZOIDAL, CORTE DE JUNTAS VERTICALES CON CORTADORA DE DISCO DE DIAMANTE A UNA PROFUNDIDAD DE 1/3 DEL PERALTE DE LA GUARNICION DENTADA, LA MODULACION SERÁ INDICADA POR SUPERVISIÓN, SELLADO DE LA JUNTA CON CINTILLA DE POLIETILENO Y SELLADOR AUTONIVELANTE A BASE DE POLIURETANO-ASFALTO TIPO SONOMERIC 1 Ó SIMILAR. SUMINISTRO Y APLICACIÓN DE PINTURA VINILICA AHULADA, EN COLOR BLANCO A DOS MANOS EN GUANICIÓN DENTADA. INCLUYE: CIMBRA, DESCIMBRADO, ELABORACION, COLADO, VIBRADO Y CURADO DEL CONCRETO, TRANSPORTE A LA SIGUIENTE POSICION, EQUIPO, HERRAMIENTA, MANO DE OBRA Y TODO LO NECESARIO PARA LA CORRECTA EJECUCIÓN DE LOS TRABAJOS. P.U.O.T. | C156: ML | D156: 91 | G156: =ROUND(F156*D156,2) -> 0
A157: E | B157: PAVIMENTOS
A158: E.1 | B158: CONSTRUCCIÓN DE BASE HIDRÁULICA, CON MATERIAL PÉTREO PROCEDENTE DE BANCO CON 100% DE TRITURACIÓN TOTAL PRODUCTO DE ROCA SANA, COMPACTADA AL 100%. INCLUYE MANO DE OBRA, MAQUINARIA, EQUIPO, HERRAMIENTA Y TODO LO REQUERIDO PARA SU CORRECTA EJECUCIÓN. P.U.O.T. | C158: M3 | D158: =230*0.2 -> 46 | G158: =ROUND(F158*D158,2) -> 0
A159: E.2 | B159: RIEGO DE IMPREGNACIÓN CON EMULSIÓN ASFÁLTICA CATIÓNICA ECI-60 DE ROMPIMIENTO LENTO. INCLUYE MAQUINARIA, EQUIPO, MANO DE OBRA, HERRAMIENTA Y TODO LO REQUERIDO PARA SU CORRECTA APLICACIÓN. P.U.O.T. | C159: LT | D159: =1.7*230 -> 391 | G159: =ROUND(F159*D159,2) -> 0
A160: E.3 | B160: CONSTRUCCIÓN DE CARPETA ASFÁLTICA DE 5 CM DE ESPESOR CON MEZCLA EN CALIENTE, DE GRANULOMETRÍA DENSA CON MATERIALES PROCEDENTES DE BANCO QUE ELIJA EL CONTRATISTA INCLUYENDO ACARREOS COMPACTADA AL 95% CON CEMENTO ASFÁLTICO PG 70-22. INCLUYE MANO DE OBRA, MAQUINARIA, EQUIPO, HERRAMIENTA Y TODO LO REQUERIDO PARA SU CORRECTA EJECUCIÓN. P.U.O.T. | C160: M3 | D160: =230*0.05 -> 11.5 | G160: =ROUND(F160*D160,2) -> 0
A161: F | B161: POSTES
A162: F.1 | B162: REPOSICIÓN DE POSTES SOBRE CANALECÓN DE CONCRETO ARMADO DE 20X20 CM CON LONGITUD TOTAL DE 160CM (100CM LIBRE + 60CM EMPOTRADO), ARMADO CON 4 VARILLAS NO. 3 (3/8") Y ESTRIBOS NO. 2 (1/4") @ 15 CM. INCLUYE EXCAVACIÓN,CIMBRA, MANO DE OBRA, MAQUINARIA, EQUIPO, HERRAMIENTA Y TODO LO REQUERIDO PARA SU CORRECTA EJECUCIÓN. P.U.O.T. | C162: PZA | D162: 10 | G162: =ROUND(F162*D162,2) -> 0
A163: G | B163: TERRACERÍAS
A164: G.1 | B164: CARGA Y ACARREO PRODUCTO DE CORTE CON MATERIAL TIPO B INCLUYE MANO DE OBRA, MAQUINARIA, EQUIPO, HERRAMIENTA Y TODO LO REQUERIDO PARA SU CORRECTA EJECUCIÓN. P.U.O.T. | C164: M3 | D164: =230*0.3 -> 69 | G164: =F164*D164 -> 0
A165: 8 | B165: CICLOVÍA TRAMO-3
A166: C | B166: SEÑALAMIENTO HORIZONTAL
A167: C.2 | B167: RAYA SEPARADORA DE CARRILES CONTINUA DOBLE COLOR BLANCO CON ANCHO DE 10 cm EN AMBOS SENTIDOS DE CIRCULACION, INCLUYE: MANO DE OBRA, EQUIPO, HERRAMIENTA, ASI COMO EL EQUIPO NECESARIO PARA SU CORRECTA INSTALACIÓN, P.U.O.T. | C167: ML | D167: =802.35*2 -> 1604.7 | G167: =ROUND(F167*D167,2) -> 0
A168: C.3 | B168: MARCAS PARA IDENTIFICAR VÍA CICLISTA EXCLUSIVA O DELIMITADA M-15.1 COLOR BLANCO INCLUYE MATERIALES, MANO DE OBRA Y HERRAMIENTA, ASÍ COMO LO NECESARIO PARA SU CORRECTA APLICACIÓN, P.U.O.T. | C168: PZA | D168: 32 | G168: =ROUND(F168*D168,2) -> 0
A169: C.4 | B169: RAYAS PARA CRUCE DE CICLISTAS M-15.5. INCLUYE PREPARACION DE LA SUPERFICIE, LIMPIEZA, MATERIALES, MANO DE OBRA Y HERRAMIENTA, ASÍ COMO LO NECESARIO PARA SU CORRECTA APLICACIÓN, P.U.O.T. | C169: ML | D169: =12*9 -> 108 | G169: =ROUND(F169*D169,2) -> 0
A170: C.5 | B170: DELIMITADOR PARA CONFINAMIENTO DE CARRIL EXCLUSIVO DE 15X25CM @1.20M. INCLUYE: MANO DE OBRA, EQUIPO, HERRAMIENTA, ASI COMO EL EQUIPO NECESARIO PARA SU CORRECTA INSTALACIÓN, P.U.O.T. | C170: PZA | D170: =(ROUNDDOWN(802.35/(1.2+0.25),0)+1)*2 -> 1108 | G170: =ROUND(F170*D170,2) -> 0
A171: C.6 | B171: BOTÓN METÁLICO DH-1 DE 10 CM Y 2 CM DE ALTURA . @1.50M EN CRUCES INCLUYE: MANO DE OBRA, EQUIPO, HERRAMIENTA, ASI COMO EL EQUIPO NECESARIO PARA SU CORRECTA INSTALACIÓN, P.U.O.T. | C171: PZA | D171: =(12/1.5+1)*9 -> 81 | G171: =ROUND(F171*D171,2) -> 0
A172: 9 | B172: PRIMARIA IGNACIO LÓPEZ RAYÓN
A173: A | B173: REDUCTOR DE VELOCIDAD CONCRETO ASFÁLTICO
A174: A.1 | B174: CONSTRUCCIÓN DE REDUCTOR DE VELOCIDAD CON MEZCLA ASFÁLTICA EN FRÍO, TIPO TRAPEZOIDAL CON MEDIDAS DE 4.80x10.6x0.12m, PINTADO CON RAYAS DIAGONALES CONFORME A NORMATIVA. INCLUYE: MANO DE OBRA, MATERIAL, EQUIPO Y HERRAMIENTA PARA SU CORRECTA INSTALACION. P.U.O.T. | C174: M3 | D174: 11.16 | G174: =ROUND(F174*D174,2) -> 0
A175: B | B175: SEÑALAMIENTO VERTICAL
A176: B.1 | B176: SUMINISTRO E INSTALACION DE SEÑALAMIENTO TIPO SP-41 CON DIMENSIONES DE 61x61cm CON LAMINA GALVANIZADA CALIBRE 16, INCLUYE: MANO DE OBRA, MATERIALES, EQUIPO Y HERRAMIENTA NECESARIA PARA LA CORRECTA INSTALACIÓN. P.U.O.T. | C176: PZA | D176: 2 | G176: =ROUND(F176*D176,2) -> 0
A177: B.2 | B177: SUMINISTRO E INSTALACION DE SEÑALAMIENTO TIPO SP-41B CON DIMENSIONES DE 61x61cm CON LAMINA GALVANIZADA CALIBRE 16, INCLUYE: MANO DE OBRA, MATERIALES, EQUIPO Y HERRAMIENTA NECESARIA PARA LA CORRECTA INSTALACIÓN P.U.O.T. | C177: PZA | D177: 2 | G177: =ROUND(F177*D177,2) -> 0
A178: B.3 | B178: SUMINISTRO E INSTALACION DE SEÑALAMIENTO TIPO SP-A CON DIMENSIONES DE 85x20cm CON LAMINA GALVANIZADA CALIBRE 16, INCLUYE: MANO DE OBRA, MATERIALES, EQUIPO Y HERRAMIENTA NECESARIA PARA LA CORRECTA INSTALACIÓN P.U.O.T. | C178: PZA | D178: 2 | G178: =ROUND(F178*D178,2) -> 0
A179: C | B179: SEÑALAMIENTO HORIZONTAL
A180: C.1 | B180: RAYA SEPARADORA DE SENTIDOS DE CIRCULACIÓN M-1.1 COLOR AMARILLO CON ANCHO DE 15 cm EN AMBOS SENTIDOS DE CIRCULACION, INCLUYE: MANO DE OBRA, EQUIPO, HERRAMIENTA, ASI COMO EL EQUIPO NECESARIO PARA SU CORRECTA INSTALACIÓN, P.U.O.T. | C180: ML | D180: 100 | G180: =ROUND(F180*D180,2) -> 0
A181: C.2 | B181: RAYA A LA ORILLA DERECHA M-3.1 COLOR BLANCO CON ANCHO DE 15 cm EN AMBOS SENTIDOS DE CIRCULACION, INCLUYE: MANO DE OBRA, EQUIPO, HERRAMIENTA, ASI COMO EL EQUIPO NECESARIO PARA SU CORRECTA INSTALACIÓN, P.U.O.T. | C181: ML | D181: 200 | G181: 0
A182: C.3 | B182: BOTÓN REFLEJANTE SOBRE EL PAVIMENTO (VIALETA) DE 10X10CM COLOR AMARILLO EN DOS CARAS BRM-A2 SOBRE RAYA M-1.1, FIJADO CON PEGAMENTO EPÓXICO PARA VIALETAS. INCLUYE: MANO DE OBRA, EQUIPO, HERRAMIENTA, ASI COMO EL EQUIPO NECESARIO PARA SU CORRECTA INSTALACIÓN, P.U.O.T. | C182: PZA | D182: =ROUNDDOWN(D180/15,0)+2 -> 8 | G182: 0
A183: C.4 | B183: BOTÓN REFLEJANTE SOBRE EL PAVIMENTO (VIALETA) DE 10X10CM COLOR BLANCO EN UNA CARA BRM-B1 SOBRE RAYA M-3.1,FIJADO CON PEGAMENTO EPÓXICO PARA VIALETAS. INCLUYE: MANO DE OBRA, EQUIPO, HERRAMIENTA, ASI COMO EL EQUIPO NECESARIO PARA SU CORRECTA INSTALACIÓN, P.U.O.T. | C183: PZA | D183: =ROUNDDOWN(D181/30,0)+2 -> 8 | G183: 0
A184: C.5 | B184: SUMINISTRO Y APLICACIÓN DE PINTURA VINILICA AHULADA, EN COLOR BLANCO A DOS MANOS EN GUANICIÓN DE CONCRETO EXISTENTE LADO DERECHO, INCLUYE: PREPARACION DE LA SUPERFICIE, LIMPIEZA, MATERIALES, MANO DE OBRA Y HERRAMIENTA, ASÍ COMO LO NECESARIO PARA SU CORRECTA APLICACIÓN, P.U.O.T. | C184: ML | D184: 100 | G184: 0
A185: C.6 | B185: SUMINISTRO Y APLICACIÓN DE PINTURA VINILICA AHULADA, EN COLOR AMARILLO A DOS MANOS EN GUANICIÓN CENTRAL EXISTENTE DE CONCRETO, INCLUYE: PREPARACION DE LA SUPERFICIE, LIMPIEZA, MATERIALES, MANO DE OBRA Y HERRAMIENTA, ASÍ COMO LO NECESARIO PARA SU CORRECTA APLICACIÓN, P.U.O.T. | C185: ML | D185: 200 | G185: 0
A186: 10 | B186: AV. LA PAZ - SAN ANTONIO (BELLAVISTA)
A187: A | B187: REDUCTOR DE VELOCIDAD CONCRETO ASFÁLTICO
A188: A.1 | B188: CONSTRUCCIÓN DE REDUCTOR DE VELOCIDAD CON MEZCLA ASFÁLTICA EN FRÍO, TIPO TRAPEZOIDAL CON MEDIDAS DE 4.80x10.6x0.12m, PINTADO CON RAYAS DIAGONALES CONFORME A NORMATIVA. INCLUYE: MANO DE OBRA, MATERIAL, EQUIPO Y HERRAMIENTA PARA SU CORRECTA INSTALACION. P.U.O.T. | C188: M3 | D188: =7.47+7.56 -> 15.03 | G188: =ROUND(F188*D188,2) -> 0
A189: B | B189: SEÑALAMIENTO VERTICAL
A190: B.1 | B190: SUMINISTRO E INSTALACION DE SEÑALAMIENTO TIPO SP-41 CON DIMENSIONES DE 61x61cm CON LAMINA GALVANIZADA CALIBRE 16, INCLUYE: MANO DE OBRA, MATERIALES, EQUIPO Y HERRAMIENTA NECESARIA PARA LA CORRECTA INSTALACIÓN. P.U.O.T. | C190: PZA | D190: 4 | G190: =ROUND(F190*D190,2) -> 0
A191: B.2 | B191: SUMINISTRO E INSTALACION DE SEÑALAMIENTO TIPO SP-41B CON DIMENSIONES DE 61x61cm CON LAMINA GALVANIZADA CALIBRE 16, INCLUYE: MANO DE OBRA, MATERIALES, EQUIPO Y HERRAMIENTA NECESARIA PARA LA CORRECTA INSTALACIÓN P.U.O.T. | C191: PZA | D191: 4 | G191: =ROUND(F191*D191,2) -> 0
A192: B.3 | B192: SUMINISTRO E INSTALACION DE SEÑALAMIENTO TIPO SP-A CON DIMENSIONES DE 85x20cm CON LAMINA GALVANIZADA CALIBRE 16, INCLUYE: MANO DE OBRA, MATERIALES, EQUIPO Y HERRAMIENTA NECESARIA PARA LA CORRECTA INSTALACIÓN P.U.O.T. | C192: PZA | D192: 4 | G192: =ROUND(F192*D192,2) -> 0
A193: C | B193: SEÑALAMIENTO HORIZONTAL
A194: C.1 | B194: RAYA SEPARADORA DE SENTIDOS DE CIRCULACIÓN M-1.1 COLOR AMARILLO CON ANCHO DE 15 cm EN AMBOS SENTIDOS DE CIRCULACION, INCLUYE: MANO DE OBRA, EQUIPO, HERRAMIENTA, ASI COMO EL EQUIPO NECESARIO PARA SU CORRECTA INSTALACIÓN, P.U.O.T. | C194: ML | D194: 100 | G194: =ROUND(F194*D194,2) -> 0
A195: C.2 | B195: RAYA A LA ORILLA DERECHA M-3.1 COLOR BLANCO CON ANCHO DE 15 cm EN AMBOS SENTIDOS DE CIRCULACION, INCLUYE: MANO DE OBRA, EQUIPO, HERRAMIENTA, ASI COMO EL EQUIPO NECESARIO PARA SU CORRECTA INSTALACIÓN, P.U.O.T. | C195: ML | D195: 200 | G195: 0
A196: C.3 | B196: BOTÓN REFLEJANTE SOBRE EL PAVIMENTO (VIALETA) DE 10X10CM COLOR AMARILLO EN DOS CARAS BRM-A2 SOBRE RAYA M-1.1, FIJADO CON PEGAMENTO EPÓXICO PARA VIALETAS. INCLUYE: MANO DE OBRA, EQUIPO, HERRAMIENTA, ASI COMO EL EQUIPO NECESARIO PARA SU CORRECTA INSTALACIÓN, P.U.O.T. | C196: PZA | D196: =ROUNDDOWN(D194/15,0)+2 -> 8 | G196: 0
A197: C.4 | B197: BOTÓN REFLEJANTE SOBRE EL PAVIMENTO (VIALETA) DE 10X10CM COLOR BLANCO EN UNA CARA BRM-B1 SOBRE RAYA M-3.1,FIJADO CON PEGAMENTO EPÓXICO PARA VIALETAS. INCLUYE: MANO DE OBRA, EQUIPO, HERRAMIENTA, ASI COMO EL EQUIPO NECESARIO PARA SU CORRECTA INSTALACIÓN, P.U.O.T. | C197: PZA | D197: =ROUNDDOWN(D195/30,0)+2 -> 8 | G197: 0
A198: C.5 | B198: SUMINISTRO Y APLICACIÓN DE PINTURA VINILICA AHULADA, EN COLOR BLANCO A DOS MANOS EN GUANICIÓN DE CONCRETO EXISTENTE LADO DERECHO, INCLUYE: PREPARACION DE LA SUPERFICIE, LIMPIEZA, MATERIALES, MANO DE OBRA Y HERRAMIENTA, ASÍ COMO LO NECESARIO PARA SU CORRECTA APLICACIÓN, P.U.O.T. | C198: ML | D198: 100 | G198: 0
A199: C.6 | B199: SUMINISTRO Y APLICACIÓN DE PINTURA VINILICA AHULADA, EN COLOR AMARILLO A DOS MANOS EN GUANICIÓN CENTRAL EXISTENTE DE CONCRETO, INCLUYE: PREPARACION DE LA SUPERFICIE, LIMPIEZA, MATERIALES, MANO DE OBRA Y HERRAMIENTA, ASÍ COMO LO NECESARIO PARA SU CORRECTA APLICACIÓN, P.U.O.T. | C199: ML | D199: 200 | G199: 0
A200: 11 | B200: UNIÓN Y EDUCACIÓN LAICA
A201: A | B201: REDUCTOR DE VELOCIDAD CONCRETO ASFÁLTICO
A202: A.1 | B202: CONSTRUCCIÓN DE REDUCTOR DE VELOCIDAD CON MEZCLA ASFÁLTICA EN FRÍO, TIPO TRAPEZOIDAL CON MEDIDAS DE 4.80x10.6x0.12m, PINTADO CON RAYAS DIAGONALES CONFORME A NORMATIVA. INCLUYE: MANO DE OBRA, MATERIAL, EQUIPO Y HERRAMIENTA PARA SU CORRECTA INSTALACION. P.U.O.T. | C202: M3 | D202: 8.55 | G202: =ROUND(F202*D202,2) -> 0
A203: B | B203: SEÑALAMIENTO VERTICAL
A204: B.1 | B204: SUMINISTRO E INSTALACION DE SEÑALAMIENTO TIPO SP-41 CON DIMENSIONES DE 61x61cm CON LAMINA GALVANIZADA CALIBRE 16, INCLUYE: MANO DE OBRA, MATERIALES, EQUIPO Y HERRAMIENTA NECESARIA PARA LA CORRECTA INSTALACIÓN. P.U.O.T. | C204: PZA | D204: 2 | G204: =ROUND(F204*D204,2) -> 0
A205: B.2 | B205: SUMINISTRO E INSTALACION DE SEÑALAMIENTO TIPO SP-41B CON DIMENSIONES DE 61x61cm CON LAMINA GALVANIZADA CALIBRE 16, INCLUYE: MANO DE OBRA, MATERIALES, EQUIPO Y HERRAMIENTA NECESARIA PARA LA CORRECTA INSTALACIÓN P.U.O.T. | C205: PZA | D205: 2 | G205: =ROUND(F205*D205,2) -> 0
A206: B.3 | B206: SUMINISTRO E INSTALACION DE SEÑALAMIENTO TIPO SP-A CON DIMENSIONES DE 85x20cm CON LAMINA GALVANIZADA CALIBRE 16, INCLUYE: MANO DE OBRA, MATERIALES, EQUIPO Y HERRAMIENTA NECESARIA PARA LA CORRECTA INSTALACIÓN P.U.O.T. | C206: PZA | D206: 2 | G206: =ROUND(F206*D206,2) -> 0
A207: B.3 | B207: SUMINISTRO E INSTALACION DE SEÑALAMIENTO TIPO SP-33 CON DIMENSIONES DE 71x71cm CON LAMINA GALVANIZADA CALIBRE 16, INCLUYE: MANO DE OBRA, MATERIALES, EQUIPO Y HERRAMIENTA NECESARIA PARA LA CORRECTA INSTALACIÓN P.U.O.T. | C207: PZA | D207: 2 | G207: =ROUND(F207*D207,2) -> 0
... 41 more rows
